bitfinex/quotes_SOLUSD_20241223
["timestamp","ask_amount","ask_price","bid_price","bid_amount"]
[1734989673178,38.22262108,192.04,191.98,23.776884]
[1734989673375,38.22262108,192.05,191.97,61.99950508]
[1734989673605,38.22262108,192.05,191.99,23.776884]
[1734989673913,38.22262108,192.08,192.01,23.776884]
[1734989674204,38.22262108,192.09,192.01,61.99950508]
[1734989674406,38.22262108,192.08,192.01,61.99950508]
[1734989674922,38.22262108,192.09,192.01,61.99950508]
[1734989675314,38.22262108,192.08,192.01,23.776884]
[1734989675517,20.0,192.12,192.01,23.776884]
[1734989675716,38.22262108,192.06,191.99,61.99950508]
[1734989678228,23.48683809,192.07,191.99,47.26372209]
[1734989679517,23.48683809,192.03,191.96,23.48683809]
[1734989680037,23.48683809,192.04,191.96,23.48683809]
[1734989680527,23.48683809,192.07,192.0,23.48683809]
[1734989680906,23.48683809,192.09,192.02,23.48683809]
[1734989681132,23.48683809,192.11,192.04,23.48683809]
[1734989681425,23.48683809,192.09,192.03,23.776884]
[1734989682110,23.48683809,192.11,192.03,47.26372209]
[1734989682541,23.48683809,192.15,192.07,23.48683809]
[1734989682708,23.48683809,192.15,192.08,23.776884]
[1734989683235,23.48683809,192.14,192.08,23.776884]
[1734989683608,23.48683809,192.14,192.07,23.776884]
[1734989683920,23.48683809,192.19,192.12,23.48683809]
[1734989684434,23.48683809,192.2,192.13,23.776884]
[1734989685013,23.48683809,192.2,192.13,47.26372209]
[1734989685231,23.48683809,192.22,192.15,23.776884]
[1734989685610,23.48683809,192.23,192.15,47.26372209]
[1734989686637,23.48683809,192.26,192.18,47.26372209]
[1734989686838,23.48683809,192.25,192.18,47.26372209]
[1734989687138,23.48683809,192.24,192.18,23.776884]
[1734989687940,23.48683809,192.26,192.19,23.48683809]
[1734989688539,23.48683809,192.28,192.2,47.26372209]
[1734989689112,23.48683809,192.27,192.2,47.26372209]
[1734989689404,23.48683809,192.25,192.16,6.2586]
[1734989689609,23.48683809,192.25,192.18,23.776884]
[1734989691013,23.48683809,192.21,192.16,6.2586]
[1734989691214,23.48683809,192.19,192.12,23.48683809]
[1734989691440,23.48683809,192.18,192.11,6.032]
[1734989691640,23.48683809,192.28,192.11,6.032]
[1734989691641,23.48683809,192.16,192.11,6.032]
[1734989691845,23.48683809,192.14,192.11,6.032]
[1734989692142,23.48683809,192.14,192.07,23.48683809]
[1734989692323,23.48683809,192.13,192.06,29.51883809]
[1734989692506,23.48683809,192.14,192.07,23.48683809]
[1734989692709,23.48683809,192.15,192.08,23.48683809]
[1734989693006,23.48683809,192.16,192.09,23.48683809]
[1734989693516,23.48683809,192.18,192.1,23.48683809]
[1734989694109,23.48683809,192.18,192.12,23.776884]
[1734989694850,23.48683809,192.2,192.12,24.55736726]
[1734989695013,23.48683809,192.21,192.15,23.776884]
[1734989695433,23.48683809,192.22,192.15,47.26372209]
[1734989695622,23.48683809,192.23,192.17,23.776884]
[1734989695933,23.48683809,192.22,192.15,47.26372209]
[1734989696426,23.48683809,192.22,192.15,23.776884]
[1734989696633,23.48683809,192.22,192.15,47.26372209]
[1734989696938,23.48683809,192.22,192.15,23.776884]
[1734989697136,23.48683809,192.21,192.15,23.776884]
[1734989697914,23.48683809,192.22,192.15,23.776884]
[1734989698227,23.48683809,192.24,192.17,47.26372209]
[1734989698431,23.48683809,192.24,192.17,53.68852209]
[1734989698611,23.48683809,192.25,192.19,23.776884]
[1734989699039,23.48683809,192.24,192.18,23.776884]
[1734989700041,23.48683809,192.23,192.18,23.776884]
[1734989700342,23.48683809,192.24,192.18,23.776884]
[1734989701240,23.48683809,192.21,192.17,6.4248]
[1734989701537,23.48683809,192.2,192.13,6.5065]
[1734989701728,20.0,192.27,192.16,23.48683809]
[1734989701916,23.48683809,192.25,192.17,23.48683809]
[1734989702242,23.48683809,192.22,192.15,23.48683809]
[1734989702450,23.48683809,192.21,192.14,23.48683809]
[1734989702740,23.48683809,192.22,192.14,23.48683809]
[1734989703322,20.0,192.27,192.13,29.99333809]
[1734989703323,23.48683809,192.2,192.13,29.99333809]
[1734989703626,23.48683809,192.2,192.13,6.5065]
[1734989704043,23.48683809,192.19,192.13,6.5065]
[1734989704536,23.48683809,192.2,192.13,6.5065]
[1734989704742,23.48683809,192.23,192.16,23.48683809]
[1734989704942,23.48683809,192.25,192.18,23.48683809]
[1734989705150,23.48683809,192.26,192.19,23.776884]
[1734989705452,23.48683809,192.28,192.21,47.26372209]
[1734989705646,23.48683809,192.31,192.23,47.26372209]
[1734989705944,23.48683809,192.32,192.25,47.26372209]
[1734989706146,23.48683809,192.33,192.25,47.26372209]
[1734989706323,23.48683809,192.33,192.26,23.48683809]
[1734989706524,23.48683809,192.34,192.27,23.776884]
[1734989706852,23.48683809,192.32,192.26,23.776884]
[1734989708444,23.48683809,192.34,192.26,47.26372209]
[1734989708678,23.48683809,192.35,192.28,23.776884]
[1734989709226,23.48683809,192.34,192.28,23.776884]
[1734989709426,23.48683809,192.32,192.25,23.48683809]
[1734989709635,23.48683809,192.3,192.24,6.1027]
[1734989709836,23.48683809,192.29,192.24,6.1027]
[1734989710037,23.48683809,192.31,192.24,6.1027]
[1734989710239,23.48683809,192.3,192.24,6.1027]
[1734989710439,23.48683809,192.28,192.24,6.1027]
[1734989710759,23.48683809,192.28,192.21,25.04413809]
[1734989710760,23.48683809,192.28,192.21,1.5573]
[1734989710941,23.48683809,192.27,192.21,1.5573]
[1734989711329,23.48683809,192.28,192.21,25.04413809]
[1734989711630,23.48683809,192.28,192.21,1.5573]
[1734989711830,20.0,192.31,192.21,25.04413809]
[1734989712139,23.48683809,192.28,192.21,25.04413809]
[1734989712956,23.48683809,192.29,192.22,23.776884]
[1734989713158,23.48683809,192.3,192.22,47.26372209]
[1734989713767,23.48683809,192.31,192.24,47.26372209]
[1734989713974,23.48683809,192.32,192.26,23.776884]
[1734989714586,23.48683809,192.3,192.26,23.776884]
[1734989714973,23.48683809,192.33,192.26,47.26372209]
[1734989715205,23.48683809,192.36,192.29,23.48683809]
[1734989715365,23.48683809,192.37,192.3,47.26372209]
[1734989715568,11.9789,192.43,192.32,23.776884]
[1734989715569,23.48683809,192.39,192.32,23.776884]
[1734989715997,23.48683809,192.42,192.35,23.776884]
[1734989716196,23.48683809,192.43,192.35,47.26372209]
[1734989716403,23.48683809,192.39,192.34,23.776884]
[1734989716785,23.48683809,192.37,192.31,6.5537]
[1734989717098,23.48683809,192.36,192.29,23.776884]
[1734989717302,23.48683809,192.37,192.3,23.48683809]
[1734989717507,23.48683809,192.37,192.29,47.26372209]
[1734989717802,23.48683809,192.37,192.3,23.48683809]
[1734989718005,23.48683809,192.37,192.31,23.776884]
[1734989718707,23.48683809,192.35,192.28,23.48683809]
[1734989719000,23.48683809,192.36,192.29,47.26372209]
[1734989719217,23.48683809,192.35,192.28,47.26372209]
[1734989719401,10.3923,192.45,192.29,47.26372209]
[1734989719609,23.48683809,192.37,192.3,23.48683809]
[1734989719911,31.1769,192.45,192.31,47.26372209]
[1734989719912,23.48683809,192.38,192.31,47.26372209]
[1734989720208,23.48683809,192.39,192.33,23.776884]
[1734989720408,23.48683809,192.39,192.31,47.26372209]
[1734989721080,23.48683809,192.37,192.31,23.776884]
[1734989721295,23.48683809,192.36,192.3,23.776884]
[1734989721600,23.48683809,192.37,192.3,47.26372209]
[1734989721806,23.48683809,192.42,192.35,23.776884]
[1734989721975,23.48683809,192.45,192.38,23.48683809]
[1734989722181,23.48683809,192.48,192.41,47.26372209]
[1734989722780,23.48683809,192.45,192.38,25.13313809]
[1734989722982,23.48683809,192.51,192.43,23.48683809]
[1734989723186,0.6761,192.56,192.47,47.26372209]
[1734989723387,0.6761,192.56,192.48,6.2299]
[1734989723708,0.6761,192.56,192.49,47.26372209]
[1734989723917,23.48683809,192.55,192.49,23.776884]
[1734989725199,0.6761,192.56,192.51,23.776884]
[1734989725717,0.6761,192.56,192.54,23.48683809]
[1734989725918,0.6761,192.56,192.55,47.26372209]
[1734989726118,23.48683809,192.67,192.56,0.12549]
[1734989726327,23.48683809,192.67,192.6,23.48683809]
[1734989726510,23.48683809,192.66,192.6,23.776884]
[1734989727027,23.48683809,192.67,192.6,47.26372209]
[1734989727242,23.48683809,192.7,192.63,23.48683809]
[1734989727534,23.48683809,192.69,192.61,23.48683809]
[1734989727700,23.48683809,192.69,192.62,23.776884]
[1734989727897,23.48683809,192.71,192.64,23.776884]
[1734989728148,23.48683809,192.73,192.66,23.776884]
[1734989728351,23.48683809,192.74,192.66,47.26372209]
[1734989728840,10.373,192.81,192.66,47.26372209]
[1734989728841,23.48683809,192.73,192.66,47.26372209]
[1734989729329,23.48683809,192.73,192.66,23.776884]
[1734989729702,23.48683809,192.73,192.66,47.26372209]
[1734989730837,24.16296669,192.75,192.68,23.776884]
[1734989731013,23.48683809,192.73,192.68,23.776884]
[1734989731568,23.48683809,192.73,192.67,23.776884]
[1734989731744,24.16296669,192.75,192.68,23.48683809]
[1734989731925,0.6761286,192.75,192.71,23.48683809]
[1734989732126,0.6761286,192.75,192.72,23.776884]
[1734989732352,0.6761286,192.75,192.71,23.48683809]
[1734989732630,0.6761286,192.75,192.72,23.776884]
[1734989732938,0.6761286,192.75,192.71,23.48683809]
[1734989733162,0.6761286,192.75,192.72,23.776884]
[1734989734064,0.6761286,192.75,192.71,23.776884]
[1734989734665,0.6761286,192.75,192.71,47.26372209]
[1734989734979,0.6761286,192.75,192.73,23.776884]
[1734989735346,0.6761286,192.75,192.73,47.26372209]
[1734989735534,0.6761286,192.75,192.73,23.776884]
[1734989735732,0.6761286,192.75,192.73,47.26372209]
[1734989736155,0.6761286,192.75,192.73,23.776884]
[1734989737833,0.6761286,192.75,192.74,47.26372209]
[1734989738044,0.6761286,192.75,192.74,54.36094487]
[1734989738229,0.6761286,192.75,192.74,54.48643487]
[1734989738430,0.6761286,192.75,192.74,54.36094487]
[1734989739178,0.6761286,192.75,192.74,30.096084]
[1734989740072,0.6761286,192.75,192.74,47.26372209]
[1734989740279,0.6761286,192.75,192.74,48.16722733]
[1734989740863,0.6761286,192.75,192.74,48.04173733]
[1734989741072,0.6761286,192.75,192.74,24.68038924]
[1734989741256,0.6761286,192.75,192.74,48.16722733]
[1734989741650,0.6761286,192.75,192.74,49.74692733]
[1734989742700,23.48683809,192.86,192.75,36.872474]
[1734989742977,23.48683809,192.92,192.85,23.776884]
[1734989743156,23.48683809,192.93,192.87,23.48683809]
[1734989743353,24.16296669,192.94,192.88,23.776884]
[1734989743756,24.16296669,192.94,192.86,23.48683809]
[1734989743757,23.48683809,192.93,192.87,23.776884]
[1734989743977,23.48683809,192.92,192.87,23.776884]
[1734989744176,23.48683809,192.93,192.87,23.776884]
[1734989744560,24.16296669,192.94,192.87,47.26372209]
[1734989744751,0.6761286,192.94,192.87,47.26372209]
[1734989744954,24.16296669,192.94,192.87,23.776884]
[1734989746380,23.48683809,192.93,192.87,23.776884]
[1734989746558,23.48683809,192.91,192.87,23.776884]
[1734989746753,23.48683809,192.89,192.82,23.48683809]
[1734989746955,23.48683809,192.87,192.81,6.0618]
[1734989747152,23.48683809,192.86,192.79,23.48683809]
[1734989747358,23.48683809,192.85,192.78,23.48683809]
[1734989747580,23.48683809,192.86,192.79,23.48683809]
[1734989747954,23.48683809,192.86,192.77,23.48683809]
[1734989748373,23.48683809,192.86,192.76,19.0307]
[1734989748374,23.48683809,192.82,192.76,6.0618]
[1734989748583,23.48683809,192.83,192.76,6.0618]
[1734989748961,23.48683809,192.82,192.76,6.0618]
[1734989749676,23.48683809,192.82,192.74,25.06653809]
[1734989750081,23.48683809,192.82,192.75,23.776884]
[1734989750275,20.0,192.87,192.74,23.48683809]
[1734989750475,23.48683809,192.76,192.71,6.1269]
[1734989750678,23.48683809,192.76,192.69,23.48683809]
[1734989752084,23.48683809,192.76,192.7,23.776884]
[1734989752381,23.48683809,192.78,192.7,23.776884]
[1734989752981,23.48683809,192.78,192.69,23.48683809]
[1734989754183,23.48683809,192.78,192.71,23.48683809]
[1734989754381,23.48683809,192.78,192.72,23.776884]
[1734989754585,23.48683809,192.74,192.67,23.48683809]
[1734989755088,23.48683809,192.76,192.67,23.48683809]
[1734989755590,23.48683809,192.76,192.69,23.48683809]
[1734989755887,23.48683809,192.76,192.67,23.48683809]
[1734989756182,23.48683809,192.74,192.68,23.776884]
[1734989756398,23.48683809,192.76,192.69,23.48683809]
[1734989756564,23.48683809,192.8,192.72,23.776884]
[1734989756757,23.48683809,192.82,192.74,23.776884]
[1734989757190,23.48683809,192.8,192.74,23.776884]
[1734989757690,23.48683809,192.78,192.66,6.1443]
[1734989757865,23.48683809,192.78,192.7,23.776884]
[1734989758066,23.48683809,192.76,192.7,23.776884]
[1734989760098,23.48683809,192.78,192.7,23.776884]
[1734989760298,23.48683809,192.8,192.72,23.776884]
[1734989760796,23.48683809,192.8,192.72,23.676884]
[1734989761966,23.48683809,192.82,192.75,23.48683809]
[1734989762194,23.48683809,192.84,192.75,23.48683809]
[1734989762503,23.48683809,192.82,192.73,23.48683809]
[1734989762707,23.48683809,192.8,192.72,23.676884]
[1734989763394,23.48683809,192.78,192.72,23.676884]
[1734989763769,23.48683809,192.78,192.69,23.48683809]
[1734989764593,23.48683809,192.76,192.67,23.48683809]
[1734989765468,23.48683809,192.78,192.69,23.48683809]
[1734989765669,23.48683809,192.8,192.73,23.48683809]
[1734989765896,23.48683809,192.82,192.74,23.776884]
[1734989766571,23.48683809,192.8,192.73,23.48683809]
[1734989766768,23.48683809,192.8,192.74,23.776884]
[1734989767093,23.48683809,192.82,192.74,23.776884]
[1734989768291,23.48683809,192.8,192.73,23.48683809]
[1734989768471,23.48683809,192.78,192.71,23.48683809]
[1734989768667,23.48683809,192.78,192.71,23.40683809]
[1734989768897,23.48683809,192.78,192.7,23.48683809]
[1734989769423,20.0,192.8,192.68,23.48683809]
[1734989769424,23.48683809,192.76,192.68,23.48683809]
[1734989769728,23.48683809,192.74,192.66,29.63113809]
[1734989770220,23.48683809,192.72,192.64,23.48683809]
[1734989771722,6.1856,192.78,192.66,23.48683809]
[1734989771924,6.1856,192.78,192.64,12.9772]
[1734989771925,23.48683809,192.77,192.69,23.776884]
[1734989772222,23.48683809,192.77,192.68,23.48683809]
[1734989772422,23.48683809,192.75,192.68,23.48683809]
[1734989772619,23.48683809,192.75,192.66,23.48683809]
[1734989772821,23.48683809,192.73,192.66,23.48683809]
[1734989773700,23.48683809,192.71,192.62,23.48683809]
[1734989775122,23.48683809,192.71,192.63,23.776884]
[1734989776027,23.48683809,192.71,192.62,23.48683809]
[1734989776226,23.48683809,192.69,192.62,23.48683809]
[1734989776426,23.48683809,192.65,192.58,23.48683809]
[1734989776597,23.48683809,192.63,192.56,29.66113809]
[1734989776804,23.48683809,192.63,192.56,6.1743]
[1734989777105,1.6319,192.71,192.56,29.66113809]
[1734989777319,20.0,192.59,192.51,6.1743]
[1734989777525,23.48683809,192.58,192.51,29.66113809]
[1734989777829,23.48683809,192.58,192.49,23.48683809]
[1734989778005,23.48683809,192.56,192.49,23.48683809]
[1734989778207,23.48683809,192.56,192.47,31.17693809]
[1734989778532,20.0,192.53,192.46,23.48683809]
[1734989778706,23.48683809,192.54,192.46,23.48683809]
[1734989779025,23.48683809,192.52,192.44,23.48683809]
[1734989780728,23.48683809,192.5,192.45,23.776884]
[1734989780906,23.48683809,192.52,192.45,23.776884]
[1734989781108,43.48683809,192.47,192.32,12.9989]
[1734989781318,43.48683809,192.47,192.37,23.48683809]
[1734989781515,43.48683809,192.47,192.39,23.48683809]
[1734989782509,20.0,192.42,192.35,23.48683809]
[1734989782709,23.48683809,192.41,192.33,23.48683809]
[1734989783020,23.48683809,192.39,192.31,23.48683809]
[1734989783421,23.48683809,192.35,192.27,24.16296669]
[1734989783628,23.48683809,192.33,192.27,0.6761286]
[1734989784046,23.48683809,192.35,192.27,24.16296669]
[1734989784569,10.3898,192.5,192.33,23.48683809]
[1734989784858,23.48683809,192.46,192.38,23.48683809]
[1734989785065,23.48683809,192.44,192.38,23.48683809]
[1734989785746,23.48683809,192.46,192.38,23.48683809]
[1734989786844,23.48683809,192.44,192.36,23.48683809]
[1734989787152,23.48683809,192.44,192.37,23.776884]
[1734989788658,23.48683809,192.44,192.36,23.48683809]
[1734989789353,23.48683809,192.5,192.32,1.5857]
[1734989789354,23.48683809,192.4,192.33,20.0]
[1734989789654,23.48683809,192.4,192.32,23.48683809]
[1734989790543,23.48683809,192.42,192.34,23.48683809]
[1734989791079,23.48683809,192.44,192.36,23.48683809]
[1734989791885,10.3905,192.49,192.38,23.48683809]
[1734989791886,23.48683809,192.46,192.38,23.48683809]
[1734989792204,23.48683809,192.46,192.39,23.776884]
[1734989792417,23.48683809,192.46,192.37,23.776884]
[1734989792418,23.48683809,192.44,192.37,23.776884]
[1734989793403,23.48683809,192.42,192.35,6.2828]
[1734989793700,23.48683809,192.42,192.34,23.48683809]
[1734989793870,23.48683809,192.4,192.32,23.48683809]
[1734989794206,23.48683809,192.42,192.34,23.48683809]
[1734989795207,23.48683809,192.4,192.33,23.776884]
[1734989795370,23.48683809,192.42,192.34,23.48683809]
[1734989795571,23.48683809,192.44,192.36,23.48683809]
[1734989796271,23.48683809,192.42,192.34,23.48683809]
[1734989796473,23.48683809,192.4,192.32,23.48683809]
[1734989797717,23.48683809,192.42,192.34,23.48683809]
[1734989798005,23.48683809,192.42,192.35,23.776884]
[1734989798171,23.48683809,192.4,192.34,23.48683809]
[1734989798505,23.48683809,192.4,192.32,23.48683809]
[1734989798682,23.48683809,192.4,192.33,23.776884]
[1734989798880,23.48683809,192.4,192.32,23.48683809]
[1734989799084,23.48683809,192.38,192.3,29.59513809]
[1734989799299,23.48683809,192.36,192.28,23.48683809]
[1734989800013,23.48683809,192.37,192.29,23.48683809]
[1734989800184,23.48683809,192.39,192.31,23.48683809]
[1734989800811,23.48683809,192.39,192.32,23.48683809]
[1734989801967,23.48683809,192.35,192.29,23.776884]
[1734989802173,23.48683809,192.32,192.27,0.6761286]
[1734989802404,23.48683809,192.31,192.27,0.6761286]
[1734989802776,23.48683809,192.32,192.27,0.6761286]
[1734989802968,23.48683809,192.31,192.27,0.6761286]
[1734989803172,23.48683809,192.28,192.27,0.6761286]
[1734989803699,23.48683809,192.29,192.27,0.6761286]
[1734989804218,23.48683809,192.28,192.27,0.6761286]
[1734989807015,46.97367618,192.28,192.27,0.6761286]
[1734989807251,23.48683809,192.19,192.12,23.48683809]
[1734989807547,23.48683809,192.19,192.11,6.294]
[1734989807754,23.48683809,192.19,192.12,23.48683809]
[1734989809714,23.48683809,192.19,192.1,23.48683809]
[1734989810917,23.48683809,192.17,192.1,23.48683809]
[1734989811121,23.48683809,192.15,192.06,29.78083809]
[1734989811328,23.48683809,192.13,192.04,23.48683809]
[1734989811546,23.48683809,192.11,192.04,23.48683809]
[1734989812458,23.48683809,192.17,192.0,23.48683809]
[1734989812459,23.48683809,192.09,192.0,23.48683809]
[1734989812951,23.48683809,192.09,191.98,1.5783]
[1734989813113,48.82342209,192.09,192.08,2.86e-05]
[1734989813319,20.0,192.05,191.93,23.48683809]
[1734989813540,23.48683809,192.01,191.93,23.48683809]
[1734989813816,20.0,192.05,191.9,23.48683809]
[1734989813817,43.48683809,191.98,191.9,23.48683809]
[1734989814282,23.48683809,191.96,191.89,0.6761286]
[1734989814865,43.48683809,191.98,191.9,23.48683809]
[1734989815573,23.48683809,191.91,191.89,0.6761286]
[1734989815870,20.0,191.94,191.89,0.6761286]
[1734989816065,6.10717805,192.0,191.89,0.6761286]
[1734989816242,23.48683809,191.94,191.89,0.6761286]
[1734989817469,43.48683809,191.98,191.9,23.48683809]
[1734989817778,10.4141,192.05,191.92,23.48683809]
[1734989817779,23.48683809,192.0,191.92,23.48683809]
[1734989818273,23.48683809,191.98,191.9,47.26372209]
[1734989818977,23.48683809,192.0,191.92,23.48683809]
[1734989819651,23.48683809,192.0,191.93,23.776884]
[1734989819872,23.48683809,192.02,191.95,23.776884]
[1734989820874,6.5203,192.08,191.96,23.48683809]
[1734989820875,23.48683809,192.04,191.96,23.48683809]
[1734989821078,20.0,192.01,191.96,23.48683809]
[1734989821879,10.4116,192.1,192.0,23.48683809]
[1734989822175,23.48683809,192.1,192.03,23.48683809]
[1734989822472,10.4092,192.14,191.97,0.78111303]
[1734989822473,23.48683809,192.06,191.97,23.48683809]
[1734989822777,23.48683809,192.06,191.98,23.776884]
[1734989822943,23.48683809,192.1,192.03,23.48683809]
[1734989823142,23.48683809,192.1,192.02,23.776884]
[1734989823366,23.48683809,192.1,192.01,23.48683809]
[1734989823562,23.48683809,192.08,192.01,23.48683809]
[1734989823767,23.48683809,192.08,192.02,23.776884]
[1734989824276,10.4092,192.14,192.06,23.776884]
[1734989824277,23.48683809,192.14,192.06,23.776884]
[1734989824454,23.48683809,192.14,192.07,23.48683809]
[1734989825073,23.48683809,192.14,192.06,23.776884]
[1734989825482,23.48683809,192.16,192.09,23.48683809]
[1734989827196,23.48683809,192.14,192.07,23.48683809]
[1734989827395,23.48683809,192.12,192.04,23.776884]
[1734989827785,23.48683809,192.12,192.03,23.48683809]
[1734989828703,23.48683809,192.14,192.07,23.48683809]
[1734989828887,23.48683809,192.14,192.05,23.48683809]
[1734989829201,23.48683809,192.14,192.06,23.776884]
[1734989829712,23.48683809,192.16,192.08,23.776884]
[1734989830276,23.48683809,192.16,192.09,23.48683809]
[1734989830500,23.48683809,192.2,192.12,23.776884]
[1734989830675,23.48683809,192.2,192.13,23.48683809]
[1734989830877,23.48683809,192.22,192.15,23.48683809]
[1734989831277,23.48683809,192.24,192.15,23.48683809]
[1734989831500,23.48683809,192.22,192.16,23.776884]
[1734989831803,23.48683809,192.2,192.13,23.48683809]
[1734989831977,23.48683809,192.18,192.12,23.776884]
[1734989832173,23.48683809,192.18,192.11,23.48683809]
[1734989832385,23.48683809,192.18,192.09,23.48683809]
[1734989832790,23.48683809,192.2,192.13,23.48683809]
[1734989833499,20.0,192.24,192.09,13.0147]
[1734989833709,23.48683809,192.21,192.13,23.48683809]
[1734989833882,23.48683809,192.23,192.16,23.776884]
[1734989835096,23.48683809,192.21,192.16,23.776884]
[1734989835310,23.48683809,192.19,192.12,23.48683809]
[1734989839487,23.48683809,192.19,192.11,23.776884]
[1734989839714,23.48683809,192.17,192.1,23.48683809]
[1734989840421,23.48683809,192.17,192.09,23.776884]
[1734989841396,23.48683809,192.17,192.08,29.66263809]
[1734989841598,23.48683809,192.13,192.06,23.48683809]
[1734989841786,23.48683809,192.15,192.06,23.48683809]
[1734989841994,23.48683809,192.19,192.11,23.48683809]
[1734989843118,23.48683809,192.21,192.13,23.48683809]
[1734989843710,23.48683809,192.21,192.14,23.776884]
[1734989844008,23.48683809,192.19,192.14,23.776884]
[1734989844719,23.48683809,192.27,192.17,23.48683809]
[1734989844925,23.48683809,192.27,192.19,23.48683809]
[1734989845096,23.48683809,192.25,192.17,23.48683809]
[1734989845820,23.48683809,192.22,192.14,23.48683809]
[1734989846197,23.48683809,192.21,192.13,47.26372209]
[1734989846903,23.48683809,192.25,192.17,23.48683809]
[1734989847113,23.48683809,192.26,192.18,23.48683809]
[1734989847299,23.48683809,192.26,192.13,36.788684]
[1734989847300,23.48683809,192.27,192.19,23.48683809]
[1734989847505,23.48683809,192.26,192.19,23.48683809]
[1734989847711,23.48683809,192.23,192.16,23.48683809]
[1734989847917,23.48683809,192.22,192.14,23.48683809]
[1734989848923,23.48683809,192.21,192.13,47.08372209]
[1734989850023,23.48683809,192.23,192.15,23.48683809]
[1734989850227,20.0,192.2,192.15,23.48683809]
[1734989850426,23.48683809,192.23,192.15,23.48683809]
[1734989851019,23.48683809,192.24,192.16,23.48683809]
[1734989851211,20.0,192.21,192.16,23.48683809]
[1734989852126,23.48683809,192.24,192.16,23.48683809]
[1734989852510,23.48683809,192.24,192.13,23.596884]
[1734989852708,23.48683809,192.24,192.17,23.48683809]
[1734989853722,18.6289,192.28,192.17,23.48683809]
[1734989853723,20.0,192.23,192.17,23.48683809]
[1734989855628,20.0,192.21,192.15,23.48683809]
[1734989855925,20.0,192.19,192.07,19.1317]
[1734989856130,23.48683809,192.18,192.1,23.48683809]
[1734989856337,20.0,192.21,192.09,23.48683809]
[1734989856338,23.48683809,192.16,192.09,23.48683809]
[1734989856507,23.48683809,192.18,192.1,23.48683809]
[1734989857609,23.48683809,192.18,192.07,6.1161]
[1734989857610,43.48683809,192.21,192.13,23.48683809]
[1734989857809,23.48683809,192.2,192.12,23.48683809]
[1734989858028,20.0,192.17,192.12,23.48683809]
[1734989858327,20.0,192.17,192.1,23.48683809]
[1734989858515,20.0,192.16,192.12,23.48683809]
[1734989858827,20.0,192.16,192.1,23.48683809]
[1734989859010,23.48683809,192.15,192.08,23.48683809]
[1734989859408,23.48683809,192.15,192.06,23.48683809]
[1734989859915,23.48683809,192.15,192.08,23.48683809]
[1734989860730,23.48683809,192.15,192.06,23.48683809]
[1734989861734,21.59,192.16,192.1,23.48683809]
[1734989862027,20.0,192.16,192.08,23.48683809]
[1734989862229,23.48683809,192.15,192.08,23.48683809]
[1734989863424,20.0,192.17,192.1,23.48683809]
[1734989863820,20.0,192.16,192.1,23.48683809]
[1734989864715,31.61503809,192.21,192.14,23.48683809]
[1734989865139,31.61503809,192.21,192.12,23.48683809]
[1734989866149,43.48683809,192.18,192.07,0.78062802]
[1734989866460,20.0,192.06,191.99,23.48683809]
[1734989866627,43.48683809,192.06,191.97,33.63771247]
[1734989866935,43.48683809,192.06,191.99,23.48683809]
[1734989867236,43.48683809,192.06,191.97,23.48683809]
[1734989867413,43.48683809,192.06,191.99,23.48683809]
[1734989867611,20.0,192.06,191.99,23.48683809]
[1734989867831,20.0,192.05,191.99,23.48683809]
[1734989868214,23.48683809,192.1,192.01,23.48683809]
[1734989868435,23.48683809,192.1,192.03,23.48683809]
[1734989868740,20.0,192.07,192.01,23.48683809]
[1734989870439,20.0,192.07,191.95,23.48683809]
[1734989870440,20.0,192.07,191.99,23.48683809]
[1734989870626,23.48683809,192.06,191.99,23.48683809]
[1734989871120,23.48683809,192.03,191.94,6.1905]
[1734989871322,23.48683809,192.03,191.94,23.48683809]
[1734989871530,23.48683809,192.01,191.94,23.48683809]
[1734989871942,23.48683809,191.99,191.92,23.48683809]
[1734989872117,23.48683809,191.99,191.9,23.48683809]
[1734989872840,20.0,191.96,191.9,23.48683809]
[1734989873237,23.48683809,191.95,191.89,0.6761286]
[1734989874237,23.48683809,191.93,191.89,0.6761286]
[1734989875017,43.48683809,191.95,191.89,0.6761286]
[1734989875247,6.2614,192.0,191.91,23.48683809]
[1734989875248,23.48683809,191.99,191.91,23.48683809]
[1734989875550,20.0,191.96,191.89,24.16296669]
[1734989875732,23.48683809,191.95,191.89,0.6761286]
[1734989877219,20.0,191.94,191.89,24.16296669]
[1734989877420,23.48683809,191.93,191.89,0.6761286]
[1734989878257,23.48683809,191.91,191.89,0.6761286]
[1734989880449,23.48683809,191.9,191.89,0.6761286]
[1734989881445,43.48683809,191.9,191.89,0.6761286]
[1734989882937,67.26372209,191.9,191.89,0.6761286]
[1734989883137,43.48683809,191.9,191.89,0.6761286]
[1734989883637,23.48683809,191.92,191.89,0.6761286]
[1734989884146,23.48683809,191.9,191.89,0.6761286]
[1734989886565,23.48683809,191.92,191.89,0.6761286]